fUST/lending_fUST_20250809
["ID","MTS","AMOUNT","RATE_DAILY","PERIOD"]
[378077784,1754717465719,-503.24,0.00023835,2]
[378077785,1754717465729,-460.0,0.00023835,2]
[378077786,1754717465739,-460.0,0.00023835,2]
[378077787,1754717465748,-460.0,0.00023835,2]
[378077788,1754717465758,-872.77,0.00023835,2]
[378077789,1754717465768,-460.0,0.00023835,2]
[378077790,1754717465778,-460.0,0.00023835,2]
[378077791,1754717465787,-623.59,0.00023835,2]
[378077792,1754717465800,-460.0,0.00023835,2]
[378077793,1754717465809,-460.0,0.00023835,2]
[378077794,1754717465820,-474.49104705,0.00023835,2]
[378077795,1754717465927,-460.0,0.00023835,2]
[378077796,1754717465948,-397.84847117,0.00023835,2]
[378077797,1754717465958,-460.0,0.00023835,2]
[378077798,1754717465968,-460.0,0.00023835,2]
[378077799,1754717465977,-460.0,0.00023835,2]
[378077800,1754717465987,-460.0,0.00023835,2]
[378077801,1754717465997,-486.22492855,0.00023835,2]
[378077802,1754717466006,-460.0,0.00023835,2]
[378077803,1754717466016,-460.0,0.00023835,2]
[378077804,1754717466025,-460.0,0.00023835,2]
[378077805,1754717466035,-460.0,0.00023835,2]
[378077806,1754717466045,-460.0,0.00023835,2]
[378077807,1754717466054,-481.14,0.00023835,2]
[378077808,1754717466063,-1328.21,0.00023835,2]
[378077809,1754717466073,-460.0,0.00023835,2]
[378077810,1754717466083,-548.91,0.00023835,2]
[378077811,1754717466093,-1419.17,0.00023835,2]
[378077812,1754717466103,-460.0,0.00023835,2]
[378077813,1754717466112,-460.0,0.00023835,2]
[378077814,1754717466122,-460.0,0.00023835,2]
[378077815,1754717466131,-460.0,0.00023835,2]
[378077816,1754717466141,-460.0,0.00023835,2]
[378077817,1754717466151,-460.0,0.00023835,2]
[378077818,1754717466161,-460.0,0.00023835,2]
[378077819,1754717466171,-460.0,0.00023835,2]
[378077820,1754717466180,-460.0,0.00023835,2]
[378077821,1754717466189,-460.0,0.00023835,2]
[378077822,1754717466199,-1181.72,0.00023835,2]
[378077823,1754717466208,-460.0,0.00023835,2]
[378077824,1754717466218,-460.0,0.00023835,2]
[378077825,1754717466227,-460.0,0.00023835,2]
[378077826,1754717466237,-813.16,0.00023835,2]
[378077827,1754717466246,-336.4183092,0.00023835,2]
[378077828,1754717466255,-460.0,0.00023835,2]
[378077829,1754717466265,-460.0,0.00023835,2]
[378077830,1754717466274,-440.07417627,0.00023835,2]
[378077831,1754717466283,-460.0,0.00023835,2]
[378077832,1754717466293,-622.45,0.00023835,2]
[378077833,1754717466302,-1619.97,0.00023835,2]
[378077834,1754717466312,-779.99,0.00023835,2]
[378077835,1754717466321,-460.0,0.00023835,2]
[378077836,1754717466331,-460.0,0.00023835,2]
[378077837,1754717466341,-1148.8,0.00023835,2]
[378077838,1754717466351,-460.0,0.00023835,2]
[378077839,1754717466361,-460.0,0.00023835,2]
[378077840,1754717466370,-460.0,0.00023835,2]
[378077841,1754717466380,-460.0,0.00023835,2]
[378077842,1754717466389,-1244.78,0.00023835,2]
[378077843,1754717466399,-460.0,0.00023835,2]
[378077844,1754717466408,-2519.37,0.00023835,2]
[378077845,1754717466418,-503.86,0.00023835,2]
[378077846,1754717466428,-638.61,0.00023835,2]
[378077847,1754717466438,-603.35,0.00023835,2]
[378077848,1754717466448,-710.26,0.00023835,2]
[378077849,1754717466457,-460.0,0.00023835,2]
[378077850,1754717466467,-460.0,0.00023835,2]
[378077851,1754717466477,-727.66,0.00023835,2]
[378077852,1754717466487,-460.0,0.00023835,2]
[378077853,1754717466497,-460.0,0.00023835,2]
[378077854,1754717466506,-460.0,0.00023835,2]
[378077855,1754717466516,-5453.14,0.00023835,2]
[378077856,1754717466531,-460.0,0.00023835,2]
[378077857,1754717466540,-2213.25,0.00023835,2]
[378077858,1754717466551,-460.0,0.00023835,2]
[378077859,1754717466561,-2392.79,0.00023835,2]
[378077860,1754717466573,-1847.54,0.00023835,2]
[378077861,1754717466583,-786.49,0.00023835,2]
[378077862,1754717466593,-460.0,0.00023835,2]
[378077863,1754717466603,-490.17582449,0.00023835,2]
[378077864,1754717466612,-915.76,0.00023835,2]
[378077865,1754717466635,-151.0,0.00023835,7]
[378077866,1754717466644,-466.57,0.00023835,2]
[378077867,1754717466654,-460.0,0.00023835,2]
[378077868,1754717466672,-542.22,0.00023835,2]
[378077869,1754717466693,-533.05,0.00023835,2]
[378077870,1754717466714,-557.41,0.00023835,2]
[378077871,1754717466734,-460.0,0.00023835,2]
[378077872,1754717466744,-460.0,0.00023835,2]
[378077873,1754717466753,-460.0,0.00023835,2]
[378077874,1754717466763,-1807.89,0.00023835,2]
[378077875,1754717466773,-460.0,0.00023835,2]
[378077876,1754717466783,-1773.57,0.00023835,2]
[378077877,1754717466792,-460.0,0.00023835,2]
[378077878,1754717466803,-1299.54,0.00023835,2]
[378077879,1754717466812,-460.0,0.00023835,2]
[378077880,1754717466821,-460.0,0.00023835,2]
[378077881,1754717466831,-460.0,0.00023835,2]
[378077882,1754717466840,-726.66,0.00023835,2]
[378077883,1754717466849,-649.7,0.00023835,2]
[378077884,1754717466859,-1110.73,0.00023835,2]
[378077885,1754717466868,-469.65458709,0.00023835,2]
[378077886,1754717466879,-971.96,0.00023835,2]
[378077887,1754717466889,-1447.77,0.00023835,2]
[378077888,1754717466899,-460.0,0.00023835,2]
[378077889,1754717466909,-500.75,0.00023835,2]
[378077890,1754717466918,-460.0,0.00023835,2]
[378077891,1754717466928,-460.0,0.00023835,2]
[378077892,1754717466937,-460.0,0.00023835,2]
[378077893,1754717466947,-460.0,0.00023835,2]
[378077894,1754717466956,-460.0,0.00023835,2]
[378077895,1754717466966,-460.0,0.00023835,2]
[378077896,1754717466976,-460.0,0.00023835,2]
[378077897,1754717466985,-460.0,0.00023835,2]
[378077898,1754717466994,-460.0,0.00023835,2]
[378077899,1754717467004,-1699.23,0.00023835,2]
[378077900,1754717467013,-672.29,0.00023835,2]
[378077901,1754717467023,-460.0,0.00023835,2]
[378077902,1754717467032,-520.08,0.00023835,2]
[378077903,1754717467041,-460.0,0.00023835,2]
[378077904,1754717467051,-889.0,0.00023835,2]
[378077905,1754717467060,-3585.3,0.00023835,2]
[378077906,1754717467070,-607.44,0.00023835,2]
[378077907,1754717467079,-350.0,0.00023868,2]
[378077908,1754717467088,-1502.38537494,0.00023868,2]
[378077909,1754717467098,-1500.0,0.00023868,2]
[378077910,1754717467108,-1011.4761579,0.00023868,2]
[378077911,1754717467117,-500.0,0.0002389,2]
[378077912,1754717467126,-366.11,0.00024,14]
[378077913,1754717467135,-263531.01951731,0.00024,2]
[378077914,1754717467145,-151.0,0.00024,7]
[378077915,1754717467154,-160.0,0.00024,7]
[378077916,1754717467162,-300.0,0.00024004,2]
[378077917,1754717467171,-150.0,0.0002404,2]
[378077918,1754717467180,-275.21,0.00024052,5]
[378077919,1754717467189,-500.0,0.00024064,2]
[378077920,1754717467198,-2505.76742711,0.00024064,2]
[378077921,1754717467207,-1423.53710111,0.00024064,2]
[378077922,1754717467216,-1016.94563007,0.00024064,2]
[378077923,1754717467226,-2500.0,0.00024064,2]
[378077924,1754717467235,-2500.0,0.00024064,2]
[378077925,1754717467244,-1196.57150221,0.00024068,2]
[378077926,1754717467253,-216.61183532,0.0002407,7]
[378077927,1754717467262,-215.40758176,0.000241,7]
[378077928,1754717467270,-151.0,0.00024108,7]
[378077929,1754717467279,-244.731309,0.00024109,7]
[378077930,1754717467288,-176.385632,0.00024109,7]
[378077931,1754717467297,-460.0,0.00024109,2]
[378077932,1754717467306,-460.0,0.00024109,2]
[378077933,1754717467315,-460.0,0.00024109,2]
[378077934,1754717467325,-460.0,0.00024109,2]
[378077935,1754717467333,-460.0,0.00024109,2]
[378077936,1754717467342,-447.8360474,0.00024109,2]
[378077937,1754717467351,-460.0,0.00024109,2]
[378077938,1754717467360,-460.0,0.00024109,2]
[378077939,1754717467369,-632.83,0.00024109,2]
[378077940,1754717467378,-460.0,0.00024109,2]
[378077941,1754717467387,-460.0,0.00024109,2]
[378077942,1754717467396,-460.0,0.00024109,2]
[378077943,1754717467404,-460.0,0.00024109,2]
[378077944,1754717467413,-460.0,0.00024109,2]
[378077945,1754717467422,-460.0,0.00024109,2]
[378077946,1754717467431,-460.0,0.00024109,2]
[378077947,1754717467440,-460.0,0.00024109,2]
[378077948,1754717467449,-460.0,0.00024109,2]
[378077949,1754717467458,-460.0,0.00024109,2]
[378077950,1754717467467,-748.0,0.00024109,2]
[378077951,1754717467476,-460.0,0.00024109,2]
[378077952,1754717467485,-460.0,0.00024109,2]
[378077953,1754717467496,-503.24,0.00024109,2]
[378077954,1754717467506,-460.0,0.00024109,2]
[378077955,1754717467515,-460.0,0.00024109,2]
[378077956,1754717467527,-460.0,0.00024109,2]
[378077957,1754717467536,-872.77,0.00024109,2]
[378077958,1754717467545,-460.0,0.00024109,2]
[378077959,1754717467554,-460.0,0.00024109,2]
[378077960,1754717467565,-623.59,0.00024109,2]
[378077961,1754717467575,-460.0,0.00024109,2]
[378077962,1754717467585,-460.0,0.00024109,2]
[378077963,1754717467595,-460.0,0.00024109,2]
[378077964,1754717467603,-460.0,0.00024109,2]
[378077965,1754717467613,-460.0,0.00024109,2]
[378077966,1754717467622,-460.0,0.00024109,2]
[378077967,1754717467631,-460.0,0.00024109,2]
[378077968,1754717467641,-460.0,0.00024109,2]
[378077969,1754717467650,-460.0,0.00024109,2]
[378077970,1754717467659,-460.0,0.00024109,2]
[378077971,1754717467668,-460.0,0.00024109,2]
[378077972,1754717467677,-862.69269088,0.00024109,2]
[378077973,1754717467687,-460.0,0.00024109,2]
[378077974,1754717467696,-481.14,0.00024109,2]
[378077975,1754717467705,-1328.21,0.00024109,2]
[378077976,1754717467714,-460.0,0.00024109,2]
[378077977,1754717467724,-548.91,0.00024109,2]
[378077978,1754717467733,-1419.17,0.00024109,2]
[378077979,1754717467742,-460.0,0.00024109,2]
[378077980,1754717467752,-167.89603516,0.00024109,2]
[378077981,1754717467761,-562.90103397,0.00024109,2]
[378077982,1754717467771,-460.0,0.00024109,2]
[378077983,1754717467781,-460.0,0.00024109,2]
[378077984,1754717467791,-460.0,0.00024109,2]
[378077985,1754717467800,-460.0,0.00024109,2]
[378077986,1754717467810,-460.0,0.00024109,2]
[378077987,1754717467819,-460.0,0.00024109,2]
[378077988,1754717467830,-460.0,0.00024109,2]
[378077989,1754717467843,-460.0,0.00024109,2]
[378077990,1754717467853,-1181.72,0.00024109,2]
[378077991,1754717467862,-460.0,0.00024109,2]
[378077992,1754717467871,-460.0,0.00024109,2]
[378077993,1754717467881,-460.0,0.00024109,2]
[378077994,1754717467890,-813.16,0.00024109,2]
[378077995,1754717467900,-460.0,0.00024109,2]
[378077996,1754717467909,-460.0,0.00024109,2]
[378077997,1754717467918,-460.0,0.00024109,2]
[378077998,1754717467928,-622.45,0.00024109,2]
[378077999,1754717467937,-1619.97,0.00024109,2]
[378078000,1754717467947,-779.99,0.00024109,2]
[378078001,1754717467956,-460.0,0.00024109,2]
[378078002,1754717467966,-460.0,0.00024109,2]
[378078003,1754717467975,-1148.8,0.00024109,2]
[378078004,1754717467988,-460.0,0.00024109,2]
[378078005,1754717467997,-460.0,0.00024109,2]
[378078006,1754717468007,-460.0,0.00024109,2]
[378078007,1754717468017,-460.0,0.00024109,2]
[378078008,1754717468026,-1244.78,0.00024109,2]
[378078009,1754717468035,-460.0,0.00024109,2]
[378078010,1754717468045,-2519.37,0.00024109,2]
[378078011,1754717468055,-503.86,0.00024109,2]
[378078012,1754717468064,-638.61,0.00024109,2]
[378078013,1754717468075,-603.35,0.00024109,2]
[378078014,1754717468084,-710.26,0.00024109,2]
[378078015,1754717468094,-460.0,0.00024109,2]
[378078016,1754717468103,-460.0,0.00024109,2]
[378078017,1754717468113,-727.66,0.00024109,2]
[378078018,1754717468123,-460.0,0.00024109,2]
[378078019,1754717468132,-460.0,0.00024109,2]
[378078020,1754717468142,-460.0,0.00024109,2]
[378078021,1754717468151,-5453.14,0.00024109,2]
[378078022,1754717468160,-460.0,0.00024109,2]
[378078023,1754717468170,-2213.25,0.00024109,2]
[378078024,1754717468180,-460.0,0.00024109,2]
[378078025,1754717468189,-2392.79,0.00024109,2]
[378078026,1754717468199,-1847.54,0.00024109,2]
[378078027,1754717468208,-786.49,0.00024109,2]
[378078028,1754717468218,-460.0,0.00024109,2]
[378078029,1754717468227,-915.76,0.00024109,2]
[378078030,1754717468237,-466.57,0.00024109,2]
[378078031,1754717468246,-460.0,0.00024109,2]
[378078032,1754717468256,-542.22,0.00024109,2]
[378078033,1754717468265,-533.05,0.00024109,2]
[378078034,1754717468275,-557.41,0.00024109,2]
[378078035,1754717468286,-214.281808,0.00024109,7]
[378078036,1754717468295,-460.0,0.00024109,2]
[378078037,1754717468305,-460.0,0.00024109,2]
[378078038,1754717468314,-460.0,0.00024109,2]
[378078039,1754717468324,-1807.89,0.00024109,2]
[378078040,1754717468333,-460.0,0.00024109,2]
[378078041,1754717468343,-1773.57,0.00024109,2]
[378078042,1754717468352,-460.0,0.00024109,2]
[378078043,1754717468362,-1299.54,0.00024109,2]
[378078044,1754717468488,-460.0,0.00024109,2]
[378078045,1754717468500,-460.0,0.00024109,2]
[378078046,1754717468509,-460.0,0.00024109,2]
[378078047,1754717468519,-726.66,0.00024109,2]
[378078048,1754717468531,-649.7,0.00024109,2]
[378078049,1754717468540,-1110.73,0.00024109,2]
[378078050,1754717468551,-971.96,0.00024109,2]
[378078051,1754717468560,-1447.77,0.00024109,2]
[378078052,1754717468570,-460.0,0.00024109,2]
[378078053,1754717468580,-500.75,0.00024109,2]
[378078054,1754717468590,-460.0,0.00024109,2]
[378078055,1754717468600,-460.0,0.00024109,2]
[378078056,1754717468610,-460.0,0.00024109,2]
[378078057,1754717468620,-460.0,0.00024109,2]
[378078058,1754717468629,-460.0,0.00024109,2]
[378078059,1754717468638,-493.5539849,0.00024109,2]
[378078060,1754717468648,-460.0,0.00024109,2]
[378078061,1754717468658,-460.0,0.00024109,2]
[378078062,1754717468667,-460.0,0.00024109,2]
[378078063,1754717468677,-1699.23,0.00024109,2]
[378078064,1754717468687,-672.29,0.00024109,2]
[378078065,1754717468696,-460.0,0.00024109,2]
[378078066,1754717468706,-520.08,0.00024109,2]
[378078067,1754717468715,-460.0,0.00024109,2]
[378078068,1754717468723,-889.0,0.00024109,2]
[378078069,1754717468732,-3585.3,0.00024109,2]
[378078070,1754717468742,-607.44,0.00024109,2]
[378078071,1754717468752,-842.95011917,0.0002411,7]
[378078072,1754717468761,-160.0,0.0002411,7]
[378078073,1754717468771,-160.0,0.0002411,7]
[378078074,1754717468780,-160.0,0.0002411,7]
[378078075,1754717468790,-312.16666667,0.0002411,7]
[378078076,1754717468799,-151.0,0.00024116,7]
[378078077,1754717468808,-151.0,0.00024116,7]
[378078078,1754717468817,-151.0,0.00024116,7]
[378078079,1754717468827,-151.0,0.00024116,7]
[378078080,1754717468837,-151.0,0.00024116,7]
[378078081,1754717468846,-151.0,0.00024116,7]
[378078082,1754717468856,-235.90307636,0.00024116,2]
[378078083,1754717468865,-164.33052138,0.00024126,2]
[378078084,1754717468875,-168.0,0.00024126,2]
[378078085,1754717468884,-160.0,0.00024129,2]
[378078086,1754717468894,-2500.0,0.00024164,2]
[378078087,1754717468903,-2500.0,0.00024164,2]
[378078088,1754717468913,-656.38657788,0.00024164,2]
[378078089,1754717468922,-1000.0,0.00024164,2]
[378078090,1754717468934,-1003.70740541,0.00024216,2]
[378078091,1754717468944,-500.00704294,0.00024216,2]
[378078092,1754717468953,-1000.0,0.00024216,2]
[378078093,1754717468963,-501.7372781,0.00024216,2]
[378078094,1754717468972,-714.72311449,0.00024216,2]
[378078095,1754717468982,-562.9285822,0.00024216,2]
[378078096,1754717468991,-1001.44830093,0.00024216,2]
[378078097,1754717469003,-500.0,0.00024216,2]
[378078098,1754717469012,-151.0,0.00024216,7]
[378078099,1754717469022,-151.0,0.00024216,7]
[378078100,1754717469032,-183.020464,0.00024216,7]
[378078101,1754717469041,-151.0,0.00024216,7]
[378078102,1754717469051,-151.0,0.00024216,7]
[378078103,1754717469060,-151.0,0.00024255,7]
[378078104,1754717469070,-15000.0,0.000243,5]
[378078105,1754717469081,-151.0,0.000243,5]
[378078106,1754717469091,-151.0,0.000243,7]
[378078107,1754717469100,-211.274078,0.000243,7]
[378078108,1754717469109,-211.274078,0.000243,7]
[378078109,1754717469119,-200.0,0.0002431,15]
[378078110,1754717469129,-200.0,0.0002431,15]
[378078111,1754717469138,-200.0,0.0002431,15]
[378078112,1754717469148,-200.0,0.0002431,15]
[378078113,1754717469158,-200.0,0.0002431,15]
[378078114,1754717469167,-200.0,0.0002431,15]
[378078115,1754717469177,-200.0,0.0002431,15]
[378078116,1754717469187,-151.0,0.00024383,7]
[378078117,1754717469196,-460.0,0.00024383,2]
[378078118,1754717469206,-460.0,0.00024383,2]
[378078119,1754717469215,-178.95349153,0.00024383,2]
[378078120,1754717469224,-460.0,0.00024383,2]
[378078121,1754717469233,-460.0,0.00024383,2]
[378078122,1754717469243,-460.0,0.00024383,2]
[378078123,1754717469252,-460.0,0.00024383,2]
[378078124,1754717469261,-632.83,0.00024383,2]
[378078125,1754717469270,-304.4943401,0.00024383,2]
[378078126,1754717469279,-460.0,0.00024383,2]
[378078127,1754717469289,-460.0,0.00024383,2]
[378078128,1754717469298,-366.22171395,0.00024383,2]
[378078129,1754717469309,-460.0,0.00024383,2]
[378078130,1754717469319,-460.0,0.00024383,2]
[378078131,1754717469330,-316.60336903,0.00024383,2]
[378078132,1754717469339,-460.0,0.00024383,2]
[378078133,1754717469349,-460.0,0.00024383,2]
[378078134,1754717469358,-748.0,0.00024383,2]
[378078135,1754717469367,-460.0,0.00024383,2]
[378078136,1754717469376,-517.09,0.00024383,2]
[378078137,1754717469387,-503.24,0.00024383,2]
[378078138,1754717469396,-460.0,0.00024383,2]
[378078139,1754717469406,-460.0,0.00024383,2]
[378078140,1754717469415,-460.0,0.00024383,2]
[378078141,1754717469425,-151.0,0.00024383,7]
[378078142,1754717469435,-872.77,0.00024383,2]
[378078143,1754717469444,-511.94073108,0.00024383,2]
[378078144,1754717469453,-460.0,0.00024383,2]
[378078145,1754717469462,-623.59,0.00024383,2]
[378078146,1754717469472,-460.0,0.00024383,2]
[378078147,1754717469482,-460.0,0.00024383,2]
[378078148,1754717469491,-460.0,0.00024383,2]
[378078149,1754717469501,-460.0,0.00024383,2]
[378078150,1754717469511,-460.0,0.00024383,2]
[378078151,1754717469523,-460.0,0.00024383,2]
[378078152,1754717469532,-460.0,0.00024383,2]
[378078153,1754717469542,-270.55235885,0.00024383,2]
[378078154,1754717469552,-460.0,0.00024383,2]
[378078155,1754717469562,-460.0,0.00024383,2]
[378078156,1754717469573,-460.0,0.00024383,2]
[378078157,1754717469582,-481.14,0.00024383,2]
[378078158,1754717469592,-1328.21,0.00024383,2]
[378078159,1754717469603,-460.0,0.00024383,2]
[378078160,1754717469615,-548.91,0.00024383,2]
[378078161,1754717469624,-1419.17,0.00024383,2]
[378078162,1754717469633,-344.75791798,0.00024383,2]
[378078163,1754717469643,-460.0,0.00024383,2]
[378078164,1754717469652,-460.0,0.00024383,2]
[378078165,1754717469662,-460.0,0.00024383,2]
[378078166,1754717469672,-460.0,0.00024383,2]
[378078167,1754717469681,-460.0,0.00024383,2]
[378078168,1754717469692,-460.0,0.00024383,2]
[378078169,1754717469701,-460.0,0.00024383,2]
[378078170,1754717469711,-1181.72,0.00024383,2]
[378078171,1754717469721,-460.0,0.00024383,2]
[378078172,1754717469730,-460.0,0.00024383,2]
[378078173,1754717469740,-460.0,0.00024383,2]
[378078174,1754717469749,-813.16,0.00024383,2]
[378078175,1754717469759,-460.0,0.00024383,2]
[378078176,1754717469768,-460.0,0.00024383,2]
[378078177,1754717469777,-460.0,0.00024383,2]
[378078178,1754717469787,-622.45,0.00024383,2]
[378078179,1754717469797,-779.99,0.00024383,2]
[378078180,1754717469806,-1619.97,0.00024383,2]
[378078181,1754717469815,-460.0,0.00024383,2]
[378078182,1754717469824,-460.0,0.00024383,2]
[378078183,1754717469834,-1148.8,0.00024383,2]
[378078184,1754717469843,-460.0,0.00024383,2]
[378078185,1754717469852,-366.81371358,0.00024383,2]
[378078186,1754717469861,-460.0,0.00024383,2]
[378078187,1754717469870,-460.0,0.00024383,2]
[378078188,1754717469879,-1244.78,0.00024383,2]
[378078189,1754717469889,-460.0,0.00024383,2]
[378078190,1754717469898,-2519.37,0.00024383,2]
[378078191,1754717469908,-503.86,0.00024383,2]
[378078192,1754717469916,-638.61,0.00024383,2]
[378078193,1754717469926,-603.35,0.00024383,2]
[378078194,1754717469936,-710.26,0.00024383,2]
[378078195,1754717469945,-460.0,0.00024383,2]
[378078196,1754717469954,-460.0,0.00024383,2]
[378078197,1754717469965,-727.66,0.00024383,2]
[378078198,1754717469974,-460.0,0.00024383,2]
[378078199,1754717469983,-460.0,0.00024383,2]
[378078200,1754717469992,-5453.14,0.00024383,2]
[378078201,1754717470002,-236.5627385,0.00024383,2]
[378078202,1754717470011,-2213.25,0.00024383,2]
[378078203,1754717470021,-460.0,0.00024383,2]
[378078204,1754717470031,-2392.79,0.00024383,2]
[378078205,1754717470040,-1847.54,0.00024383,2]
[378078206,1754717470049,-786.49,0.00024383,2]
[378078207,1754717470058,-460.0,0.00024383,2]
[378078208,1754717470068,-915.76,0.00024383,2]
[378078209,1754717470079,-151.0,0.00024383,7]
[378078210,1754717470089,-466.57,0.00024383,2]
[378078211,1754717470099,-460.0,0.00024383,2]
[378078212,1754717470107,-542.22,0.00024383,2]
[378078213,1754717470116,-533.05,0.00024383,2]
[378078214,1754717470126,-557.41,0.00024383,2]
[378078215,1754717470136,-460.0,0.00024383,2]
[378078216,1754717470146,-460.0,0.00024383,2]
[378078217,1754717470155,-460.0,0.00024383,2]
[378078218,1754717470165,-1807.89,0.00024383,2]
[378078219,1754717470175,-460.0,0.00024383,2]
[378078220,1754717470185,-205.267949,0.00024383,7]
[378078221,1754717470195,-1773.57,0.00024383,2]
[378078222,1754717470205,-460.0,0.00024383,2]
[378078223,1754717470215,-1299.54,0.00024383,2]
[378078224,1754717470224,-460.0,0.00024383,2]
[378078225,1754717470234,-460.0,0.00024383,2]
[378078226,1754717470243,-205.267949,0.00024383,7]
[378078227,1754717470253,-460.0,0.00024383,2]
[378078228,1754717470264,-726.66,0.00024383,2]
[378078229,1754717470273,-649.7,0.00024383,2]
[378078230,1754717470283,-1110.73,0.00024383,2]
[378078231,1754717470293,-971.96,0.00024383,2]
[378078232,1754717470302,-1447.77,0.00024383,2]
[378078233,1754717470311,-460.0,0.00024383,2]
[378078234,1754717470321,-500.75,0.00024383,2]
[378078235,1754717470332,-460.0,0.00024383,2]
[378078236,1754717470341,-460.0,0.00024383,2]
[378078237,1754717470351,-460.0,0.00024383,2]
[378078238,1754717470360,-460.0,0.00024383,2]
[378078239,1754717470369,-460.0,0.00024383,2]
[378078240,1754717470378,-460.0,0.00024383,2]
[378078241,1754717470387,-460.0,0.00024383,2]
[378078242,1754717470396,-1699.23,0.00024383,2]
[378078243,1754717470406,-672.29,0.00024383,2]
[378078244,1754717470415,-460.0,0.00024383,2]
[378078245,1754717470424,-520.08,0.00024383,2]
[378078246,1754717470434,-460.0,0.00024383,2]
[378078247,1754717470443,-889.0,0.00024383,2]
[378078248,1754717470453,-3585.3,0.00024383,2]
[378078249,1754717470463,-607.44,0.00024383,2]
[378078250,1754717470472,-2249.35253173,0.00024397,2]
[378078251,1754717470481,-3447.31999276,0.00024399,2]
[378078252,1754717470491,-168.0,0.00024403,2]
[378078253,1754717470501,-168.0,0.00024411,2]
[378078254,1754717470510,-450.0,0.00024416,2]
[378078255,1754717470521,-2000.0,0.00024416,2]
[378078256,1754717470533,-1560.34,0.00024447,2]
[378078257,1754717470543,-259.67,0.00024447,2]
[378078258,1754717470553,-168.0,0.00024452,2]
[378078259,1754717470563,-168.0,0.00024474,2]
[378078260,1754717470575,-151.0,0.00024475,7]
[378078261,1754717470585,-153.08024,0.00024475,7]
[378078262,1754717470594,-789.721827,0.00024475,7]
[378078263,1754717470607,-789.721827,0.00024475,7]
[378078264,1754717470618,-308.0,0.000245,2]
[378078265,1754717470628,-168.0,0.00024514,2]
[378078266,1754717470639,-600.0,0.00024552,2]
[378078267,1754717470649,-3355.53533201,0.00024584,2]
[378078268,1754717470658,-3000.0,0.00024612,2]
[378078269,1754717470668,-3000.0,0.00024612,2]
[378078270,1754717470678,-168.0,0.00024642,2]
[378078271,1754717470687,-20618.00120384,0.0002465,2]
[378078272,1754717470697,-151.0,0.0002465,7]
[378078273,1754717470810,-297.872679,0.00024657,7]
[378078274,1754717470820,-244.731309,0.00024657,7]
[378078275,1754717470833,-460.0,0.00024657,2]
[378078276,1754717470843,-460.0,0.00024657,2]
[378078277,1754717470853,-186.84160051,0.00024657,2]
[378078278,1754717470862,-460.0,0.00024657,2]
[378078279,1754717470872,-460.0,0.00024657,2]
[378078280,1754717470883,-460.0,0.00024657,2]
[378078281,1754717470893,-632.83,0.00024657,2]
[378078282,1754717470902,-151.0,0.00024657,7]
[378078283,1754717470911,-151.0,0.00024657,7]